Cogmind - Beta 15 @@@ ROGUE MODE // 2025.06.19 @ 22:36:59 Player: 7604 Result: Destroyed by 34-6LU(R) with Subdweller Laser Performance ------------- Evolutions (0) 0 Regions Visited (2) 400 Robots Destroyed (33) 165 Value Destroyed (762) 762 Prototype IDs (15) 300 Alien Tech Used (0) 0 Bonus (-103) -103 TOTAL SCORE: 1524 Bonus ------- Friendly Fire -103 Cogmind --------- Core Integrity 0/250 Matter 271/300 Energy 94/100 System Corruption 2% Temperature Cool (6) Movement Core (1400) Ox27 Location -10/Subcaves Parts ------- > --- POWER (1) -------- (None) > --- PROPULSION (2) --- (None) > --- UTILITY (2) ------ Huge Storage Unit > --- WEAPON (2) ------- Small Laser Light Assault Rifle > --- INVENTORY (25) --- Ion Engine Light Ion Engine Meta Core Cargo Legs Heat Sink Heat Sink Heat Sink Improved Terrain Scanner Seismic Detector Subdweller Shrapnel Launcher Datajack Ripper Peak State ------------ > --- POWER ------------ Ion Engine > --- PROPULSION ------- Light Treads Light Treads > --- UTILITY ---------- Huge Storage Unit Seismic Detector > --- WEAPON ----------- Assault Rifle Ripper > --- INVENTORY -------- Ion Engine Light Ion Engine Light Treads Light Treads Cargo Legs Heat Sink Heat Sink Heat Sink Improved Terrain Scanner Small Laser Light Assault Rifle Subdweller Shrapnel Launcher Datajack [Rating: 13] Favorites ----------- Power Ion Engine Engine Ion Engine Propulsion Light Treads Treads Light Treads Leg Aluminum Leg Utility Seismic Detector Device Seismic Detector Storage Huge Storage Unit Weapon Assault Rifle Energy Gun Small Laser Ballistic Gun Assault Rifle Launcher Subdweller Shrapnel Launcher Slashing Weapon Ripper Build | -11 -10 -10 ------- Run | Yrd Mat Sub Slots Evolved . | . . . Power . | . . . Propulsion . | . . . Utility . | . . . Weapon . | . . . Parts Attached 17 | 2 10 5 Power 1 | . 1 . Engine 1 | . 1 . Core . | . . . Reactor . | . . . Propulsion 5 | . 3 2 Treads 5 | . 3 2 Leg . | . . . Wheel . | . . . Hover . | . . . Flight . | . . . Utility 6 | 1 5 . Device 3 | 1 2 . Storage 3 | . 3 . Processor . | . . . Hackware . | . . . Protection . | . . . Artifact . | . . . Weapon 5 | 1 1 3 Energy Gun 1 | . 1 . Energy Cannon . | . . . Ballistic Gun 2 | 1 . 1 Ballistic Cannon . | . . . Launcher 1 | . . 1 Special Weapon . | . . . Impact Weapon . | . . . Slashing Weapon 1 | . . 1 Piercing Weapon . | . . . Special Melee Weapon . | . . . Unidentified Prototypes . | . . . Parts Lost 10 | . 4 6 Power 2 | . 1 1 Propulsion 5 | . 1 4 Utility 1 | . 1 . Weapon 2 | . 1 1 Highest Loss Streak 5 | . 2 5 To Critical Strikes . | . . . Average Backups 9 | 6 8 12 Power 1 | 1 1 2 Propulsion 1 | 4 . 2 Utility 3 | . 3 4 Weapon 1 | 1 1 2 Tool/Special . | . . . Unused Backups 19 | . 11 8 Power 3 | . 1 2 Propulsion 7 | . 6 1 Utility 5 | . 2 3 Weapon 1 | . 1 . Tool/Special 3 | . 1 2 Average Slot Usage (%) 96 | . 98 94 Engine 13 | . 14 13 Treads 27 | . 27 27 Device 12 | . 12 13 Storage 14 | . 14 14 Energy Gun 5 | . 6 2 Ballistic Gun 17 | . 21 10 Slashing Weapon 3 | . . 10 Peak Build Rating 13 | 7 9 13 Average Rating 9 | 6 7 11 On Entrance 7 | 6 7 8 Naked Turns . | . . . Heaviest Build 94 | 13 89 94 Greatest Support 40 | 20 40 40 Greatest Overweight (x) 2 | . 2 2 Average Overweight (x) 1 | . 1 2 Largest Inventory Capacity 25 | 8 25 25 Average Capacity 23 | 8 22 25 Most Carried 16 | 7 11 16 Average Carried 10 | 6 8 13 Final Capacity 25 | 8 25 25 Final Carried 13 | 7 10 13 Class Distribution -------------------- 100% | Mutant Dominant Class ---------------- Mutant | -10/Materials Mutant | -10/Subcaves Resources | -11 -10 -10 ----------- Run | Yrd Mat Sub Matter Collected 845 | 234 438 173 Remotely . | . . . Salvage Created 916 | 37 657 222 Parts 66 | 6 48 12 Haulers Intercepted 2 | . 2 . Recyclers Shooed . | . . . Parts Field Recycled . | . . . Retrieved Matter . | . . . Parts Self-Destructed 6 | . . 6 Prevented . | . . . Kills | -11 -10 -10 ------- Run | Yrd Mat Sub Combat Hostiles Destroyed 24 | . 16 8 Melee 4 | . . 4 Guns 16 | . 15 1 AOE 4 | . 1 3 Classes Destroyed 10 | 1 6 3 Worker 1 | . 1 . Tunneler 3 | 2 1 . Hauler 2 | . 2 . Operator 1 | . 1 . Watcher 2 | . 2 . Swarmer 9 | . 6 3 Grunt 10 | . 10 . Sentry 1 | . . 1 Artisan 1 | . . 1 Subdweller 4 | . . 4 Best Kill Streak 4 | 1 4 3 Combat Bots Only 3 | . 3 3 Max Kills in Single Turn 2 | 1 2 2 Gunslinging . | . . . Exploded 2 | . 1 2 Melee 1 | . . 1 Uniques/NPCs Destroyed . | . . . Combat | -11 -10 -10 -------- Run | Yrd Mat Sub Hostile Shots Fired 127 | . 74 53 Missed 37 | . 25 12 Hits 90 | . 49 41 Projectile 90 | . 49 41 AOE 1 | . . 1 Critical Strikes 2 | . . 2 Damage Taken 1411 | . 620 791 Core 268 | . 57 211 Absorbed by Shields . | . . . Core Remaining (%) 100 | 100 . . Volleys Fired 77 | 7 58 12 Largest 2 | 2 2 2 Hottest 60 | 40 60 60 Shots Fired 153 | 14 118 21 Gun 150 | 14 118 18 Cannon . | . . . Launcher 3 | . . 3 Special . | . . . Kinetic 118 | 14 92 12 Thermal 35 | . 26 9 Explosive . | . . . Electromagnetic . | . . . Robot Hit Streak 18 | 2 13 18 Robot Miss Streak 10 | 4 10 1 Penetration Max . | . . . Secondary Targets 2 | . 2 . Max Gunslinging Chain 1 | . 1 . Shots Hit Robots 101 | 5 72 24 Core Hits 52 | 2 36 14 Critical Kills . | . . . Critical Parts Destroyed . | . . . Critical Strikes . | . . . Melee Attacks 9 | . . 9 Impact . | . . . Slashing 9 | . . 9 Piercing . | . . . Sneak Attacks 1 | . . 1 Combat Hostiles . | . . . Follow-up Attacks . | . . . Damage Inflicted 2070 | 57 1330 683 Guns 1113 | 57 907 149 Cannons . | . . . Explosions 714 | . 423 291 Melee 243 | . . 243 Ramming . | . . . Kinetic 1161 | 57 750 354 Thermal 520 | . 434 86 Explosive 146 | . 146 . Electromagnetic . | . . . Impact . | . . . Slashing 243 | . . 243 Piercing . | . . . Highest Corruption 2 | . 2 2 Average Corruption 2 | . 2 2 Corruption Purged . | . . . Corruption Blocked . | . . . Effects 35 | . 17 18 Message Errors 11 | . 5 6 Matter Fused 9 | . 2 7 Heat Flow Errors 3 | . 2 1 Energy Discharges 4 | . 3 1 Parts Rejected 1 | . 1 . Data Loss (minor) 2 | . 1 1 Data Loss (major) 2 | . 1 1 Misfires 2 | . 2 . Alerts 1 | . . 1 Overload Shots . | . . . Overflow Damage 71 | . 60 11 Projectiles . | . . . Explosions 60 | . 60 . Melee 11 | . . 11 Knockbacks . | . . . Impact . | . . . Kinetic . | . . . Secondary . | . . . Self-Inflicted Damage 138 | . 138 . Shots 2 | . 2 . Rammed . | . . . Targets Rammed . | . . . Kicked . | . . . Crushed . | . . . Highest Temperature 298 | . 298 69 Average Temperature 90 | . 91 49 Received Heat Transfer 291 | . 192 99 Siege Activations . | . . . Martial Activations . | . . . Shielding Activations . | . . . Robots Disrupted . | . . . Combat Hostiles . | . . . Robots Corrupted . | . . . Combat Hostiles . | . . . Parts Fried . | . . . Impact Corruptions . | . . . Robots Melted . | . . . Combat Hostiles . | . . . Parts Melted 1 | . 1 . Heat Transferred 750 | . 550 200 Parts Sabotaged . | . . . Parts Stolen . | . . . Parts Stripped . | . . . Power Chain Reactions . | . . . Alert | -11 -10 -10 ------- Run | Yrd Mat Sub Maximum Alert Level . | . . . Low Security (%) 100 | 100 100 . Level 1 . | . . . Level 2 . | . . . Level 3 . | . . . Level 4 . | . . . Level 5 . | . . . High Security . | . . . Max Security . | . . . Peak Influence 158 | 5 158 . Initial . | . . . Average 51 | 1 53 . Influence Increases 695 | 10 595 90 Destroy 0b10 Robot/C 400 | . 320 80 Destroy 0b10 Robot/NC 45 | 10 35 . Destroy Leader 68 | . 58 10 Successful Hack 13 | . 13 . Select Force Hacks 60 | . 60 . Disable Machine 60 | . 60 . Destroy Structure 19 | . 19 . Lose Combat Pursuer 30 | . 30 . Influence Decreases 695 | 10 528 157 Entered New Map 33 | . . 33 Time Decay 612 | 10 488 114 Lost Part 50 | . 40 10 Squads Dispatched 4 | . 4 . Investigation 2 | . 2 . Extermination . | . . . Reinforcement 2 | . 2 . Assault . | . . . Garrison . | . . . Intercept . | . . . Searches Triggered . | . . . Construction Impeded . | . . . Haulers Reinforced . | . . . Active Scanning Responses . | . . . Cargo Convoy Interrupts . | . . . Stealth | -11 -10 -10 --------- Run | Yrd Mat Sub Distress Signals 3 | . 3 . Communications Jammed . | . . . Distress Signals . | . . . Times Spotted 37 | . 28 9 Peak Tracking Total 4 | . 4 3 Tactical Retreats 3 | . 3 . Traps | -11 -10 -10 ------- Run | Yrd Mat Sub Traps Triggered 1 | . 1 . Indirectly . | . . . Trap Hack Attempts . | . . . Triggered . | . . . Disarmed . | . . . Reprogrammed . | . . . Reused . | . . . Traps Extracted . | . . . Installed . | . . . Triggered . | . . . Machines | -11 -10 -10 ---------- Run | Yrd Mat Sub Machines Disabled 5 | . 4 1 Max in Single Turn 4 | . 4 1 Machines Repaired . | . . . Machines Dismantled . | . . . Machines Sabotaged . | . . . Overloaded Fab Kills . | . . . Hacking | -11 -10 -10 --------- Run | Yrd Mat Sub Machines Accessed 8 | . 7 1 Terminals 5 | . 5 . Fabricators . | . . . Repair Stations . | . . . Recycling Units 2 | . 2 . Scanalyzers . | . . . Garrison Access . | . . . Total Hacks 20 | . 19 1 Successful 15 | . 14 1 Failed 5 | . 5 . Catastrophic . | . . . Database Lockouts . | . . . Manual 14 | . 14 . Terminals 15 | . 15 . Fabricators . | . . . Repair Stations . | . . . Recycling Units 4 | . 4 . Scanalyzers . | . . . Garrison Access . | . . . Terminal Hacks 5 | . 4 1 Prototype ID Bank 3 | . 3 . Locate Traps 1 | . 1 . Proto ID Catalog 1 | . . 1 Fabricator Hacks . | . . . Repair Station Hacks . | . . . Recycling Unit Hacks 1 | . 1 . Retrieve Components 1 | . 1 . Scanalyzer . | . . . Garrison Access Hacks . | . . . Unauthorized Hacks 9 | . 9 . Terminals 7 | . 7 . Botnet 1 | . 1 . Operators 1 | . 1 . Skim 5 | . 5 . Fabricators . | . . . Repair Stations . | . . . Recycling Units 2 | . 2 . Tunnel 2 | . 2 . Scanalyzers . | . . . Garrison Access . | . . . Data Cores Recovered . | . . . Used . | . . . Hacking Detections 6 | . 6 . Full Trace Events . | . . . Feedback Events . | . . . Feedback Blocked . | . . . Robot Schematics Acquired . | . . . Robots Built . | . . . Authchips . | . . . Time . | . . . Total Robot Build Rating . | . . . Part Schematics Acquired . | . . . Parts Built . | . . . Authchips . | . . . Time . | . . . Total Part Build Rating . | . . . Parts Repaired . | . . . Time . | . . . Parts Recycled . | . . . Recycled Matter . | . . . Retrieved Matter . | . . . Retrieved Components 10 | . 10 . Parts Scanalyzed . | . . . Part Schematics Acquired . | . . . Parts Damaged . | . . . Bothacking | -11 -10 -10 ------------ Run | Yrd Mat Sub Used RIF Installer . | . . . Robots Hacked . | . . . Non-combat . | . . . Combat . | . . . Robot Hacks Applied . | . . . Relay Couplers Released . | . . . Fabnet Peak Effective % . | . . . Robots Rewired . | . . . Allies Hacked . | . . . Hacks Repelled . | . . . Allies | -11 -10 -10 -------- Run | Yrd Mat Sub Total Allies . | . . . Largest Group . | . . . Highest-Rated Group . | . . . Highest-Rated Ally . | . . . Total Orders . | . . . Ally Attacks . | . . . Total Damage . | . . . Kills . | . . . Allies Corrupted . | . . . Allies Melted . | . . . Intel | -11 -10 -10 ------- Run | Yrd Mat Sub Active Infowar (turns) 3122 | 7 1965 1150 Terrain 90 | . 90 . Seismic 3032 | 7 1875 1150 Robot Analysis Total . | . . . Derelict Logs Recovered . | . . . Drone Launches . | . . . Drone Recoveries . | . . . Exploration | -11 -10 -10 ------------- Run | Yrd Mat Sub Turns Passed 3486 | 66 2184 1236 Spaces Moved 1047 | 35 662 350 Core . | . . . Treads 997 | . 647 350 Legs 50 | 35 15 . Wheels . | . . . Hover . | . . . Flight . | . . . Fastest Speed 120 | 120 120 320 Average Speed 287 | 120 279 320 Slowest Speed 320 | 120 320 320 Overloaded Moves . | . . . Propulsion Burnouts . | . . . Robots Hopped . | . . . Potential Cave-ins . | . . . Cave-ins Triggered . | . . . Exploration Rate (%) 39 | 3 92 23 Regions Visited 2 Branch Regions 1 Pre-discovered Areas 4 | . 4 . Known Exits Taken 1 | . 1 . Unknown Exits Taken 1 | 1 . . Scrap Searched 1 | . . 1 Spaces Dug . | . . . Terrain Destroyed 46 | . 17 29 Melee . | . . . Projectile . | . . . AOE 46 | . 17 29 Terrain Rammed . | . . . Walls Destroyed . | . . . Machines Disabled . | . . . Actions | -11 -10 -10 --------- Run | Yrd Mat Sub Total 1354 | 44 877 433 Wait 169 | . 125 44 Move 1045 | 34 661 350 Hop . | . . . Pick Up 16 | 1 11 4 Fast Attach 3 | 1 2 . Attach 9 | . 3 6 Detach 4 | . . 4 Swap 14 | 1 9 4 Drop 8 | . 8 . Fire 77 | 7 58 12 Melee 9 | . . 9 Ram . | . . . Kick . | . . . Crush . | . . . Escape Stasis . | . . . Rewire . | . . . Trap . | . . . Miscellaneous . | . . . Route ------- -11/Scrapyard -10/Materials (discovered 5 exits: [*Mat x3] / [*Min] / *Sub) -10/Subcaves (discovered 1 exit: [*Mat]) History --------- Turn | Location | Event 9 | -11/Scrapyard | Discovered new exit (range 3) 67 | -11/Scrapyard | Entered Materials 78 | -10/Materials | Discovered new exit (range 14) 180 | -10/Materials | Discovered new exit (range 16) 311 | -10/Materials | Build established: Mutant 567 | -10/Materials | Derelicts attacked the area 1444 | -10/Materials | Discovered new exit (range 3) 1907 | -10/Materials | Discovered new exit (range 15) 1946 | -10/Materials | Identified exit to Subcaves 2034 | -10/Materials | Learned Storage emergency access door positions 2064 | -10/Materials | Learned location of Mines (-9) 2098 | -10/Materials | Learned location of Storage (-9) 2152 | -10/Materials | Learned 4 Subcaves zone layouts 2251 | -10/Materials | Entered Subcaves 2252 | -10/Subcaves | Approached by a straggling Scientist 2268 | -10/Subcaves | Discovered new exit (range 15) 2453 | -10/Subcaves | Visited 4L-MR0's lab 2491 | -10/Subcaves | Found Cargo Legs 3122 | -10/Subcaves | A Subdweller sparked back to life 3122 | -10/Subcaves | A Subdweller sparked back to life 3178 | -10/Subcaves | Found Meta Core 3443 | -10/Subcaves | Core integrity fell below 50% 3474 | -10/Subcaves | Core integrity fell below 20% 3487 | -10/Subcaves | Destroyed by 34-6LU(R) with Subdweller Laser Last Messages --------------- 03122_ GQ-GX9(R) creaks and sparks as it begins to move. 03124_ AU-L6J(R) destroyed. 03126_ GQ-GX9(R) destroyed. 03126_ NU-AS1(R) destroyed. 03139_ Subatomizers dissect the Meta Core. 03169_ Acquired 20 matter. 03178_ Acquired Meta Core. 03179_ Acquired 14 matter. 03265_ System corrupted: IFF burst signal emitted. 03355_ Acquired 5 matter. 03371_ Acquired 41 matter. 03410_ Acquired 9 matter. 03436_ System corrupted: Energy discharge (-77). 03454_ Lgt. Treads destroyed. 03458_ Ion Engine destroyed. 03460_ Assault Rifle destroyed. 03464_ Lgt. Treads destroyed. 03482_ 0K-GPG(R) destroyed. Map ----- +----------------------------------------------------+ | ?????????????????????????????????????????????????? | | ?????????????????????????????????????????????????? | | ?????????????????????????????????????????????????? | | ?????????????????????????????????????????????????? | | ?????????????????????????????????????????????????? | | ?????????????????????????????????????????????????? | | ?????????????????????????????????????????????????? | | ?????????????????????????????????????????????????? | | ?????????????????????????????????????????????????? | | ?????????????????????????????????????????????????? | | ?????????????????????????????????????????????????? | | ?????????????????????????????????????????????????? | | ?????????????????????????????????????????????????? | | ??????????????? ????????????????????????????????? | | ??????????????? ???????????????????????????????? | | ???????????????? ?????????????????????????????? | | ????????????????? ????????????????????????????? | | ?????????????????? ???????????????????????????? | | ??????????????????? ???######??????????????????? | | ????????????????????# ?## #?? ???????????????? | | ????????????????????# ## ??""#??????????????? | | ????????????????????# %##""????????????????? | | ????????????????????#% R * ??????????????????? | | ???????????????#????? %!##??????????????????? | | ???????????????# ?????# ! ##""""#????????????? | | ???????????????# #####@ """????????????? | | ???????????????# %######""????????????? | | ?????????????# #???????????????????? | | ???????"" # # ##??????????????????? | | ???????#" % #### ##?????????????????? | | ???????# ##### ##?## %##????????????????? | | ???????###???# ##?# #????????????????? | | ?????????????# #?# #????????????????? | | ?????????????##### #?# #????????????????? | | ?????????????????## #?# #????????????????? | | ?????????????###??# ##### # #????????????????? | | ??#####??????#%#??## #### # #????????????????? | | ### ######## #???#### # ## #????????????????? | | % ###???# # #????????????????? | | ##??# #####????????????????? | | ### ##?# # ##????????????????????? | | #?### """ #?# #????????????????????? | | ##??#"##" ### #????????????????????? | | """####### % % ##???????????????????? | | "" ### % ##??????????????????? | | ## ### #??????????????????? | | ##?## ##?????????????????? | | ###### ##????????????????? | | #### ## ?#### #????????????????? | | ## #??# #?? ?## ##????????????????# | +----------------------------------------------------+ Best States ------------- Heat Dissipation 25 Energy Generation 10 Energy Capacity 250 Matter Stores 300 Matter Capacity 300 Sight Range 16 Terrain Scan Range 16 Terrain Scan Density 10 Evasion (%) 55 Recoil Reduction 2 Item Schematics ----------------- None Robot Schematics ------------------ None Fabricated ------------ Nothing Repaired ---------- Nothing Alien Tech Used ----------------- None Achievements -------------- None Challenges ------------ None Game ------ Seed RainbowTrackerLauncher Manual? 0 Play Time 00:14:51 Cumulative 463.1 hours Start 2025.06.19 @ 22:22:59 End 2025.06.19 @ 22:36:59 Sessions 1 Manual Loads 0 Difficulty Rogue Special Mode None Game No. 245 Rogue 182 Adventurer 63 Explorer 0 Win Type - Total 9 Types 8/0/0/1/0/0/0/0/0/0 Lore% 89 Gallery% 80 Achievement% 66 Wizard Run 0 Options --------- Layout 1 ASCII 0 Keyboard 1 Movement Numpad Keybinds 0 Fullscreen 1 Font 24/Terminus Map View 50x35 Zoom Use 0% Tactical HUD 1 Map Filters NONE Filters NONE Steam 1 RUN: 830a578f-79f3-4ad6-a54f-db5a7bb080b6